bitfinex/quotes_SOLUSD_20250917
["timestamp","ask_amount","ask_price","bid_price","bid_amount"]
[1758131275187,36.74,235.95,235.9,6.38102147]
[1758131275600,36.78,235.96,235.89,9.94028553]
[1758131275994,36.78,235.96,235.9,5.70102147]
[1758131276304,0.06,235.96,235.92,5.70102147]
[1758131276598,0.06,235.96,235.95,5.70102147]
[1758131276980,0.06,235.96,235.95,9.93920752]
[1758131277194,0.06,235.96,235.95,10.63920752]
[1758131278496,1e-08,235.96,235.95,10.63920752]
[1758131278695,1e-08,235.96,235.95,4.93818605]
[1758131279005,1e-08,235.96,235.95,10.63920752]
[1758131280208,0.06,235.99,235.95,10.63920752]
[1758131280209,1e-08,235.99,235.98,26.0]
[1758131280400,0.06,236.01,235.99,13.59559401]
[1758131280709,0.06,236.01,235.99,0.7]
[1758131281001,0.06,236.01,235.95,93.73365119]
[1758131281002,0.06,236.01,235.95,14.83365119]
[1758131281205,5.76102147,236.01,235.95,20.53467266]
[1758131281421,0.06,236.01,235.97,5.70102147]
[1758131281613,5.76102147,236.01,235.95,4.93818605]
[1758131281789,5.70102147,235.99,235.95,4.23818605]
[1758131281991,5.70102147,235.98,235.93,4.23849932]
[1758131282207,5.70102147,235.99,235.93,14.83486264]
[1758131282405,0.76,236.01,235.95,5.70102147]
[1758131282606,0.06,236.01,235.97,5.70102147]
[1758131282813,0.06,236.01,235.98,5.70102147]
[1758131283216,0.06,236.01,235.99,10.63848915]
[1758131283420,0.06,236.01,236.0,5.70102147]
[1758131283600,0.06,236.01,236.0,6.40102147]
[1758131283789,0.06,236.01,236.0,5.70102147]
[1758131283989,0.06,236.01,235.99,4.23746768]
[1758131284212,0.06,236.01,236.0,0.72]
[1758131284513,0.06,236.01,236.0,6.42102147]
[1758131284902,0.06,236.01,236.0,0.72]
[1758131285116,0.06,236.01,235.99,4.23746768]
[1758131285411,0.06,236.01,235.96,9.93902791]
[1758131285620,5.76102147,236.01,235.96,4.23800644]
[1758131285824,5.76102147,236.01,235.92,26.0]
[1758131285825,5.70102147,235.98,235.9,0.72]
[1758131286004,0.71,236.0,235.89,4.23926406]
[1758131286005,5.70102147,235.96,235.89,4.23926406]
[1758131286198,0.71,235.98,235.89,4.23926406]
[1758131286507,0.71,235.98,235.89,14.83742421]
[1758131286699,5.70102147,235.98,235.91,5.70102147]
[1758131286900,62.48,236.0,235.91,5.70102147]
[1758131287109,26.0,236.0,235.92,5.70102147]
[1758131287320,5.70102147,235.97,235.93,4.23854533]
[1758131287629,5.70102147,235.97,235.86,26.0]
[1758131287630,6.41102147,235.97,235.89,5.70102147]
[1758131287784,3.90546026,235.96,235.89,8.14472432]
[1758131287987,3.90546026,235.96,235.89,18.74288447]
[1758131288406,3.90546026,235.97,235.89,15.55742421]
[1758131288619,3.90546026,235.96,235.89,15.55742421]
[1758131288794,3.90546026,235.96,235.89,19.46288447]
[1758131288993,3.90546026,235.97,235.89,15.55742421]
[1758131289192,3.90546026,235.97,235.91,4.23890466]
[1758131289417,0.71,235.98,235.91,14.83616632]
[1758131289598,3.90546026,235.92,235.84,0.03]
[1758131289808,3.90546026,235.89,235.84,14.87056431]
[1758131290103,26.71,235.97,235.85,4.62546026]
[1758131290312,26.71,235.97,235.84,14.87056431]
[1758131290313,0.71,235.97,235.89,3.90546026]
[1758131290620,3.90546026,235.98,235.9,4.62546026]
[1758131290914,4.67546026,236.01,235.9,0.72]
[1758131291218,4.67546026,236.01,235.93,3.90546026]
[1758131291219,41.05546026,236.01,235.93,3.90546026]
[1758131291404,0.06,236.01,235.94,8.14382594]
[1758131291712,0.06,236.01,235.95,3.90546026]
[1758131292112,0.06,236.01,235.96,3.90546026]
[1758131292289,0.06,236.01,235.97,3.90546026]
[1758131292496,0.06,236.01,235.98,3.90546026]
[1758131292715,0.06,236.01,235.94,15.55427989]
[1758131292716,0.06,236.01,235.94,14.83427989]
[1758131292892,0.06,236.01,235.95,3.90546026]
[1758131293094,0.06,236.01,235.97,3.90546026]
[1758131293300,0.06,236.01,235.98,14.83176539]
[1758131293997,0.06,236.01,235.98,4.23764725]
[1758131294799,0.06,236.01,235.96,14.83302254]
[1758131294992,0.06,236.01,235.98,3.90546026]
[1758131295213,0.06,236.01,235.99,3.90546026]
[1758131295419,0.06,236.01,236.0,4.23728813]
[1758131296401,0.06,236.01,235.98,4.23755061]
[1758131296913,0.06,236.01,235.98,15.55166875]
[1758131297517,0.06,236.01,235.98,18.73712901]
[1758131297715,0.06,236.01,235.99,0.72]
[1758131297912,0.06,236.01,235.99,4.62546026]
[1758131298114,0.06,236.01,236.0,0.72]
[1758131298303,0.06,236.01,235.99,4.62546026]
[1758131298711,0.06,236.01,236.0,0.72]
[1758131299110,0.06,236.01,235.98,14.83166875]
[1758131299402,0.06,236.01,235.95,26.72]
[1758131299604,0.06,236.01,235.98,3.90546026]
[1758131299911,0.06,236.01,235.97,3.90546026]
[1758131300309,0.06,236.01,235.98,4.62546026]
[1758131300912,0.06,236.01,235.98,0.72]
[1758131301527,0.06,236.01,235.99,4.23746768]
[1758131303230,0.06,236.01,235.97,0.72]
[1758131303231,3.90546026,236.0,235.97,4.23768073]
[1758131303528,3.90546026,236.0,235.98,0.03]
[1758131304582,0.77,236.01,235.98,0.03]
[1758131304583,4.61546026,235.99,235.98,0.03]
[1758131305704,8.85292794,235.99,235.98,0.03]
[1758131305915,22.44852195,235.99,235.98,0.03]
[1758131306323,18.21105427,235.99,235.98,0.03]
[1758131306527,14.30559401,235.99,235.98,0.03]
[1758131306727,18.21105427,235.99,235.98,0.03]
[1758131306919,22.44852195,235.99,235.98,0.03]
[1758131307431,26.0,235.96,235.83,0.72]
[1758131307817,3.90546026,235.89,235.84,4.27015619]
[1758131308005,3.90546026,235.89,235.85,0.72]
[1758131308204,3.90546026,235.9,235.85,0.72]
[1758131308414,3.90546026,235.86,235.84,0.03]
[1758131308704,3.90546026,235.89,235.84,0.03]
[1758131308934,36.12,235.88,235.84,0.03]
[1758131309106,3.90546026,235.92,235.85,0.72]
[1758131309440,23.33386086,235.99,235.85,0.72]
[1758131309441,3.90546026,235.97,235.9,3.90546026]
[1758131309604,36.12,235.96,235.9,0.72]
[1758131309805,3.90546026,236.0,235.92,3.90546026]
[1758131310238,36.12,235.99,235.92,3.90546026]
[1758131310915,36.12,235.99,235.91,14.83616632]
[1758131310916,36.12,235.98,235.93,3.90546026]
[1758131311336,0.71,235.97,235.91,14.83616632]
[1758131311503,3.90546026,235.93,235.84,0.03]
[1758131311709,3.90546026,235.89,235.84,0.03]
[1758131311904,3.90546026,235.88,235.84,0.03]
[1758131312132,3.90546026,235.91,235.85,0.72]
[1758131312538,36.12,235.91,235.85,0.72]
[1758131312753,40.02546026,235.91,235.85,0.72]
[1758131312950,0.71,235.95,235.85,0.72]
[1758131313165,3.90546026,235.93,235.86,3.90546026]
[1758131313337,36.12,235.92,235.85,4.62546026]
[1758131313537,3.90546026,235.91,235.84,0.03]
[1758131313854,3.90546026,235.88,235.84,0.03]
[1758131314038,3.90546026,235.86,235.84,0.03]
[1758131315039,40.02546026,235.86,235.84,0.03]
[1758131315261,4.58546026,235.85,235.84,0.03]
[1758131317046,34.8254433,235.85,235.84,0.03]
[1758131317368,30.91998304,235.85,235.84,0.03]
[1758131317667,48.42103731,235.85,235.84,0.03]
[1758131318469,84.54103731,235.85,235.84,0.03]
[1758131318652,48.42103731,235.85,235.84,0.03]
[1758131318852,84.54103731,235.85,235.84,0.03]
[1758131319733,58.54103731,235.85,235.84,0.03]
[1758131319936,71.28103731,235.85,235.84,0.03]
[1758131320156,75.18649757,235.85,235.84,0.03]
[1758131320469,58.54103731,235.85,235.84,0.03]
[1758131320645,84.54103731,235.85,235.84,0.03]
[1758131321553,58.54103731,235.85,235.84,0.03]
[1758131321955,71.28103731,235.85,235.84,0.03]
[1758131322266,58.54103731,235.85,235.84,0.03]
[1758131322445,22.42103731,235.85,235.84,0.03]
[1758131322655,48.42103731,235.85,235.84,0.03]
[1758131322847,58.54103731,235.85,235.84,0.03]
[1758131323363,84.54103731,235.85,235.84,0.03]
[1758131325442,48.42103731,235.85,235.84,0.03]
[1758131325644,83.86103731,235.85,235.84,0.03]
[1758131325957,84.54103731,235.85,235.84,0.03]
[1758131326263,83.86103731,235.85,235.84,0.03]
[1758131327136,29.90546026,235.85,235.84,0.03]
[1758131327337,66.35998304,235.85,235.84,0.03]
[1758131327568,29.90546026,235.85,235.84,0.03]
[1758131327751,66.02546026,235.85,235.84,0.03]
[1758131327941,83.86103731,235.85,235.84,0.03]
[1758131332157,58.54103731,235.85,235.84,0.03]
[1758131332667,53.95557705,235.85,235.84,0.03]
[1758131332872,43.50105427,235.85,235.84,0.03]
[1758131333073,26.0,235.93,235.84,0.71]
[1758131333368,26.0,235.85,235.84,0.03]
[1758131333558,66.02546026,235.85,235.84,0.03]
[1758131334644,62.12,235.85,235.84,0.03]
[1758131334848,66.02546026,235.85,235.84,0.03]
[1758131335457,79.62105427,235.85,235.84,0.03]
[1758131336842,79.60105427,235.85,235.84,0.03]
[1758131338154,43.50105427,235.85,235.84,0.03]
[1758131338353,83.84103731,235.85,235.84,0.03]
[1758131340368,83.84103731,235.85,235.81,0.03]
[1758131340369,26.0,235.82,235.81,0.03]
[1758131340553,66.00546026,235.82,235.81,0.03]
[1758131341072,84.5515767,235.82,235.81,0.03]
[1758131341278,83.8415767,235.82,235.81,0.03]
[1758131341580,79.60105427,235.82,235.81,0.03]
[1758131341779,81.46178715,235.82,235.81,0.03]
[1758131341958,45.36178715,235.82,235.81,0.03]
[1758131342153,81.44178715,235.82,235.81,0.03]
[1758131342678,45.36178715,235.82,235.81,0.03]
[1758131342879,12.74,235.9,235.81,0.75]
[1758131343087,13.59559401,235.88,235.81,0.75]
[1758131343288,26.0,235.84,235.81,0.75]
[1758131343470,36.08,235.83,235.82,0.72]
[1758131343663,13.59559401,235.88,235.83,0.72]
[1758131343984,1.52567071,235.86,235.84,0.7]
[1758131344276,36.08,235.85,235.82,0.7]
[1758131344472,36.08,235.85,235.83,0.7]
[1758131344886,132.8,235.92,235.85,4.23998304]
[1758131345062,17.83378006,235.95,235.86,0.7]
[1758131345259,1.52567071,235.9,235.86,0.7]
[1758131345468,36.08,235.89,235.87,0.7]
[1758131345770,36.08,235.89,235.85,4.23998304]
[1758131345771,36.08,235.89,235.88,0.7]
[1758131346279,26.0,235.9,235.88,0.7]
[1758131346487,36.08,235.89,235.85,14.83994064]
[1758131346681,39.59559401,235.93,235.85,14.83994064]
[1758131346682,3.90745446,235.9,235.85,14.83994064]
[1758131346858,13.65559401,235.98,235.89,4.23926406]
[1758131347058,3.90745446,235.96,235.9,0.7]
[1758131347285,3.90745446,235.93,235.9,0.7]
[1758131347482,36.08,235.92,235.91,0.7]
[1758131348583,5.68326741,235.93,235.89,4.23926406]
[1758131348871,17.89324868,235.98,235.9,0.7]
[1758131348872,5.68326741,235.96,235.9,0.7]
[1758131349072,13.65559401,235.98,235.9,0.7]
[1758131349297,41.74326741,235.97,235.91,5.68326741]
[1758131349495,41.74326741,235.97,235.92,0.7]
[1758131349656,41.74326741,235.97,235.93,0.7]
[1758131350084,41.74326741,235.97,235.94,0.7]
[1758131350288,5.68326741,235.97,235.94,0.7]
[1758131350592,36.06,235.96,235.95,0.7]
[1758131351670,0.06,235.98,235.95,4.93818605]
[1758131351873,0.06,236.01,235.97,5.68326741]
[1758131352187,0.06,236.01,235.96,0.7]
[1758131352188,0.06,236.01,235.98,5.68326741]
[1758131352388,0.06,236.01,235.95,40.83365119]
[1758131352688,0.06,236.03,236.0,5.68326741]
[1758131352861,0.06,236.03,236.01,5.68326741]
[1758131353063,0.06,236.03,236.02,10.62019648]
[1758131353358,0.06,236.03,236.02,30.93692907]
[1758131353563,0.06,236.03,236.02,36.62019648]
[1758131353981,0.06,236.03,236.02,30.93692907]
[1758131354173,0.06,236.03,236.02,36.62019648]
[1758131357378,0.06,236.03,236.02,30.93692907]
[1758131357679,0.06,236.03,236.02,36.62019648]
[1758131358273,0.06,236.03,236.02,0.7]
[1758131358566,0.06,236.03,236.02,6.38326741]
[1758131361882,0.06,236.03,236.02,26.7]
[1758131362082,0.06,236.03,236.02,32.38326741]
[1758131362692,0.06,236.03,236.02,32.80696031]
[1758131363394,0.06,236.03,236.02,32.38326741]
[1758131363598,0.06,236.03,236.02,32.80696031]
[1758131363790,0.06,236.03,236.02,33.50696031]
[1758131364198,0.06,236.03,236.02,47.10255432]
[1758131368001,0.06,236.03,236.02,43.7953103]
[1758131368183,0.06,236.03,236.02,27.4]
[1758131368383,0.06,236.03,236.02,36.66]
[1758131368698,0.06,236.03,235.96,0.7]
[1758131368893,0.06,236.03,235.97,35.96]
[1758131369198,0.06,236.03,235.97,61.96]
[1758131369792,2.37602339,236.01,235.97,35.96]
[1758131369977,2.37602339,236.01,235.95,21.19093028]
[1758131370182,2.37602339,236.01,235.95,47.19093028]
[1758131370382,2.37602339,236.01,235.95,21.19093028]
[1758131370696,0.06,236.03,235.97,26.0]
[1758131371090,2.37602339,236.02,235.94,0.7]
[1758131371399,2.37602339,236.02,235.94,62.64]
[1758131371806,5.67997478,236.01,235.94,62.64]
[1758131371989,0.67,236.0,235.91,0.7]
[1758131372177,0.67,236.0,235.93,35.94]
[1758131372378,5.67997478,235.98,235.93,35.94]
[1758131372580,4.29676385,236.03,235.94,26.0]
[1758131372788,5.67997478,235.97,235.94,26.0]
[1758131372994,5.67997478,235.97,235.91,62.64]
[1758131373376,5.67997478,235.97,235.91,36.64]
[1758131373583,5.67997478,235.97,235.89,26.0]
[1758131373801,5.67997478,235.95,235.89,35.92]
[1758131373997,5.67997478,235.95,235.89,26.0]
[1758131374195,5.67997478,235.95,235.86,36.62]
[1758131374403,5.67997478,235.95,235.86,0.7]
[1758131374606,5.67997478,235.95,235.89,26.0]
[1758131374804,5.67997478,235.98,235.9,0.67]
[1758131375006,6.36997478,236.0,235.91,26.0]
[1758131375216,0.06,236.03,235.92,0.67]
[1758131375417,0.69,236.01,235.92,0.67]
[1758131375601,6.36997478,236.01,235.92,0.67]
[1758131376104,5.67997478,235.98,235.91,61.92]
[1758131376301,5.67997478,235.96,235.91,61.92]
[1758131376505,0.69,235.95,235.86,0.67]
[1758131376706,5.67997478,235.93,235.86,36.59]
[1758131377681,5.67997478,235.91,235.86,35.92]
[1758131377883,6.36997478,235.91,235.86,35.92]
[1758131378110,5.67997478,235.91,235.84,26.0]
[1758131378316,6.36997478,235.91,235.84,26.0]
[1758131378513,5.67997478,235.89,235.83,0.67]
[1758131378895,0.69,235.91,235.83,0.67]
[1758131379097,5.67997478,235.9,235.83,0.67]
[1758131380000,5.67997478,235.94,235.85,31.67997478]
[1758131380202,0.69,235.95,235.87,5.67997478]
[1758131380401,0.69,235.95,235.88,0.67]
[1758131380601,5.67997478,235.97,235.89,5.67997478]
[1758131381503,5.67997478,235.95,235.88,0.67]
[1758131383196,0.69,235.96,235.88,26.0]
[1758131383197,5.67997478,235.93,235.88,26.0]
[1758131383397,5.67997478,235.91,235.82,2.21225057]
[1758131383601,5.67997478,235.87,235.82,2.21225057]
[1758131383799,0.69,235.9,235.83,0.67]
[1758131384006,0.69,235.93,235.86,26.0]
[1758131384202,13.59559401,235.98,235.86,26.67]
[1758131384399,5.67997478,235.94,235.86,26.67]
[1758131384613,5.67997478,235.94,235.87,5.67997478]
[1758131385011,5.67997478,235.92,235.87,26.0]
[1758131385220,0.69,235.91,235.87,26.0]
[1758131385797,5.67997478,235.94,235.88,0.67]
[1758131386005,0.69,235.95,235.89,5.67997478]
[1758131386408,0.69,235.95,235.88,32.34997478]
[1758131386613,0.69,235.98,235.88,32.34997478]
[1758131386902,5.67997478,235.95,235.92,26.0]
[1758131387108,5.67997478,235.96,235.92,26.0]
[1758131387307,35.88,236.0,235.92,26.0]
[1758131387308,0.69,236.0,235.94,26.0]
[1758131387513,0.06,236.01,235.94,0.67]
[1758131387818,5.67997478,235.99,235.91,5.67997478]
[1758131388208,5.67997478,235.99,235.9,6.34997478]
[1758131388407,0.69,236.0,235.92,26.0]
[1758131388609,5.67997478,235.98,235.92,26.0]
[1758131388907,0.69,235.99,235.92,26.0]
[1758131389223,5.67997478,235.98,235.92,26.0]
[1758131389421,5.67997478,235.94,235.87,0.67]
[1758131389639,5.67997478,235.92,235.84,0.67]
[1758131389813,5.67997478,235.9,235.84,0.67]
[1758131390326,5.67997478,235.9,235.84,26.67]
[1758131390830,5.67997478,235.9,235.84,0.67]
[1758131391002,5.67997478,235.94,235.84,6.34997478]
[1758131391209,5.67997478,235.94,235.85,0.67]
[1758131391406,5.67997478,235.92,235.85,0.67]
[1758131392216,5.67997478,235.9,235.83,26.67]
[1758131392417,6.36997478,235.9,235.83,26.67]
[1758131392619,5.67997478,235.88,235.83,26.0]
[1758131392839,6.36997478,235.88,235.83,26.0]
[1758131393038,5.67997478,235.88,235.83,26.67]
[1758131393339,5.67997478,235.89,235.83,26.67]
[1758131393519,0.69,235.91,235.83,26.67]
[1758131393839,0.69,235.95,235.88,5.67997478]
[1758131394036,5.67997478,235.96,235.91,26.0]
[1758131394335,6.36997478,235.96,235.91,26.0]
[1758131394535,5.67997478,235.97,235.91,26.67]
[1758131394928,0.69,235.99,235.92,5.67997478]
[1758131395239,0.69,235.99,235.91,0.67]
[1758131395411,0.69,235.99,235.91,6.34997478]
[1758131395617,6.36997478,235.99,235.91,6.34997478]
[1758131395817,0.69,235.99,235.91,6.34997478]
[1758131396127,5.67997478,235.94,235.9,26.0]
[1758131396528,6.36997478,235.94,235.9,26.0]
[1758131397031,4.23735295,236.0,235.89,26.0]
[1758131397223,5.67997478,235.95,235.89,26.0]
[1758131397426,5.67997478,235.96,235.89,26.0]
[1758131397923,0.72,236.0,235.91,5.67997478]
[1758131398139,5.67997478,235.97,235.9,6.36997478]
[1758131398319,0.72,235.99,235.9,6.36997478]
[1758131398320,5.67997478,235.96,235.9,0.69]
[1758131399449,5.67997478,235.97,235.9,0.69]
[1758131399660,5.67997478,235.97,235.9,6.36997478]
[1758131399829,6.39997478,235.96,235.89,5.67997478]
[1758131400153,0.72,235.96,235.89,6.36997478]
[1758131400355,5.67997478,235.9,235.85,0.69]
[1758131400523,5.67997478,235.89,235.84,2.24380662]
[1758131400723,5.67997478,235.89,235.84,28.24380662]
[1758131400955,0.72,235.92,235.85,0.69]
[1758131401253,5.67997478,235.96,235.88,5.67997478]
[1758131401457,5.67997478,235.96,235.86,26.0]
[1758131401458,5.67997478,235.97,235.89,6.36997478]
[1758131401617,0.72,235.98,235.9,5.67997478]
[1758131401819,5.67997478,235.97,235.9,5.67997478]
[1758131402044,6.39997478,235.98,235.91,5.67997478]
[1758131402258,5.67997478,235.97,235.89,6.36997478]
[1758131402465,5.67997478,235.95,235.89,0.69]
[1758131402630,5.67997478,235.93,235.86,0.69]
[1758131402831,5.67997478,235.91,235.87,26.0]
[1758131403030,5.67997478,235.9,235.87,26.0]
[1758131403256,5.67997478,235.89,235.84,2.24380662]
[1758131403461,5.67997478,235.89,235.84,2.93380662]
[1758131403661,5.67997478,235.96,235.88,5.67997478]
[1758131403839,5.67997478,235.96,235.88,6.38997478]
[1758131404237,0.71,236.0,235.92,5.67997478]
[1758131404552,0.06,236.01,235.97,5.67997478]
[1758131404763,0.06,236.01,235.97,6.38997478]
[1758131404959,0.06,236.01,235.98,6.38997478]
[1758131405134,0.06,236.01,235.96,5.67997478]
[1758131405341,0.06,236.01,235.94,0.71]
[1758131405647,5.67997478,235.98,235.93,26.0]
[1758131405948,5.67997478,235.98,235.91,0.71]
[1758131405949,0.06,236.01,235.94,0.71]
[1758131406161,0.06,236.01,235.95,5.67997478]
[1758131406868,5.73997478,236.01,235.96,26.0]
[1758131407044,5.67997478,235.97,235.9,0.71]
[1758131407229,5.67997478,235.96,235.91,26.0]
[1758131407630,0.06,236.01,235.95,5.67997478]
[1758131407837,0.06,236.01,235.96,5.67997478]
[1758131408062,6.38997478,236.0,235.91,0.71]
[1758131408252,0.71,236.0,235.91,0.71]
[1758131408567,0.71,236.0,235.91,26.71]
[1758131408568,5.67997478,235.96,235.91,26.71]
[1758131408765,5.67997478,235.97,235.92,0.71]
[1758131409071,5.67997478,236.0,235.93,6.38997478]
[1758131409461,0.06,236.01,235.95,5.67997478]
[1758131409637,0.06,236.01,235.94,0.71]
[1758131409843,0.06,236.01,235.94,4.61340065]
[1758131410152,3.90340065,236.0,235.94,0.71]
[1758131410346,3.96340065,236.01,235.94,4.61340065]
[1758131410551,3.96340065,236.01,235.94,3.90340065]
[1758131410745,0.06,236.01,235.95,4.61340065]
[1758131410945,3.96340065,236.01,235.95,0.71]
[1758131411269,3.90340065,236.0,235.93,3.90340065]
[1758131411577,3.90340065,236.0,235.93,4.61340065]
[1758131411938,3.90340065,235.99,235.9,4.61340065]
[1758131412143,3.90340065,235.96,235.9,0.71]
[1758131412360,3.90340065,235.95,235.9,0.71]
[1758131412872,0.71,235.98,235.9,0.71]
[1758131413066,3.90340065,235.97,235.9,4.61340065]
[1758131413266,0.77,236.01,235.92,3.90340065]
[1758131413570,3.90340065,235.98,235.91,0.71]
[1758131414875,3.90340065,235.97,235.91,0.71]
[1758131415059,0.06,236.01,235.88,0.74]
[1758131415060,3.90340065,235.95,235.88,0.74]
[1758131415381,3.90340065,235.98,235.91,3.90340065]
[1758131415555,3.90340065,235.99,235.92,0.71]
[1758131415963,3.90340065,235.97,235.92,0.71]
[1758131416150,3.90340065,235.95,235.88,0.03]
[1758131416468,3.90340065,235.94,235.88,0.03]
[1758131416678,3.90340065,235.93,235.88,0.03]
[1758131416975,3.90340065,235.93,235.88,0.74]
[1758131417276,3.90340065,235.95,235.89,0.71]
[1758131417585,3.90340065,235.97,235.89,4.61340065]
[1758131417755,3.90340065,235.99,235.92,3.90340065]
[1758131417952,0.06,236.01,235.94,3.90340065]
[1758131418151,0.06,236.01,235.96,3.90340065]
[1758131418679,0.06,236.01,235.95,3.90340065]
[1758131418879,0.06,236.01,235.96,3.90340065]
[1758131419082,0.06,236.01,235.97,4.61340065]
[1758131419265,0.06,236.01,235.95,3.90340065]
[1758131419764,0.06,236.01,235.94,3.90340065]
[1758131420074,0.06,236.01,235.96,3.90340065]
[1758131420269,3.96340065,236.01,235.95,0.71]
[1758131420472,3.96340065,236.01,235.91,30.61340065]
[1758131420473,3.90340065,235.99,235.91,30.61340065]
[1758131421164,3.90340065,235.97,235.91,26.71]
[1758131421362,0.71,235.99,235.91,26.71]
[1758131421569,3.90340065,235.97,235.91,26.71]
[1758131422073,3.90340065,235.98,235.91,30.61340065]
[1758131422290,4.61340065,235.99,235.91,26.71]
[1758131422461,4.61340065,235.99,235.91,30.61340065]
[1758131422660,3.90340065,235.99,235.92,0.71]
[1758131422873,3.90340065,236.0,235.93,3.90340065]
[1758131423279,3.90340065,235.99,235.92,4.61340065]
[1758131423876,3.90340065,235.99,235.92,0.71]
[1758131424082,3.90340065,236.0,235.93,3.90340065]
[1758131424463,0.06,236.01,235.93,3.90340065]
[1758131424679,0.06,236.01,235.94,3.90340065]
[1758131425264,3.90340065,236.0,235.93,4.61340065]
[1758131426366,3.96340065,236.01,235.93,4.61340065]
[1758131426563,3.90340065,235.98,235.91,3.90340065]
[1758131426765,3.90340065,235.98,235.91,4.61340065]
[1758131427084,3.90340065,235.96,235.9,26.0]
[1758131427457,3.90340065,235.96,235.9,26.71]
[1758131427878,3.90340065,235.97,235.9,4.61340065]
[1758131429289,3.90340065,235.97,235.9,0.71]
[1758131429483,3.90340065,235.98,235.91,3.90340065]
[1758131429686,3.90340065,235.98,235.93,26.0]
[1758131429891,3.90340065,235.99,235.93,0.71]
[1758131430488,3.90340065,235.97,235.9,30.61340065]
[1758131431269,3.90340065,235.97,235.9,26.71]
[1758131431667,0.71,235.96,235.9,26.0]
[1758131431893,4.2376883,235.98,235.88,0.03]
[1758131431894,3.90340065,235.92,235.88,0.03]
[1758131432074,7.09070789,235.98,235.88,0.74]
[1758131432264,3.90340065,235.94,235.88,0.74]
[1758131432462,3.90340065,235.95,235.88,4.64340065]
[1758131432694,3.90340065,235.94,235.88,0.74]
[1758131432874,3.90340065,235.95,235.88,4.64340065]
[1758131433076,7.09167378,235.99,235.88,4.64340065]
[1758131433077,2.854183,235.99,235.91,3.90340065]
[1758131433276,3.90340065,235.99,235.93,4.23854533]
[1758131433578,3.90340065,236.0,235.93,4.23854533]
[1758131433891,3.90340065,235.96,235.92,4.23871144]
[1758131434079,3.90340065,235.93,235.92,4.23871144]
[1758131434683,3.90340065,235.93,235.9,4.2389621]
[1758131434892,3.90340065,235.92,235.9,4.2389621]
[1758131435099,4.62340065,235.92,235.9,4.2389621]
[1758131435299,4.62340065,235.92,235.88,0.03]
[1758131435586,0.72,235.95,235.88,0.73]
[1758131435795,3.90340065,235.93,235.88,0.03]
[1758131436005,3.90340065,235.93,235.88,0.73]
[1758131436488,3.90340065,235.91,235.88,0.03]
[1758131437085,0.72,235.92,235.88,0.03]
[1758131437270,3.90340065,235.92,235.88,0.03]
[1758131437694,3.90340065,235.91,235.88,0.03]
[1758131437899,1.52374638,235.91,235.88,0.03]
[1758131438372,0.72,235.9,235.88,0.03]
[1758131438577,1.52374638,235.89,235.88,0.03]
[1758131438985,1.52374638,235.9,235.88,0.03]
[1758131439298,1.52374638,235.91,235.88,0.03]
[1758131439490,1.52374638,235.9,235.88,0.03]
[1758131440473,1.52374638,235.89,235.88,0.03]
[1758131440798,2.24374638,235.89,235.88,0.03]
[1758131440993,1.52374638,235.89,235.88,0.03]
[1758131442883,2.24374638,235.89,235.88,0.03]
[1758131443994,0.72,235.93,235.88,0.03]
[1758131444173,37.10374638,235.94,235.88,0.73]
[1758131444573,1.52374638,235.93,235.89,4.23926406]
[1758131444782,2.24374638,235.93,235.89,4.23926406]
[1758131444974,1.52374638,235.93,235.89,4.23926406]
[1758131445169,0.72,235.92,235.89,4.23926406]
[1758131445689,1.52374638,235.93,235.88,0.03]